bitfinex/quotes_BTCUSD_20241025
["timestamp","ask_amount","ask_price","bid_price","bid_amount"]
[1729882112809,0.148434,67370.0,67369.0,0.15050381]
[1729882113021,0.03406019,67369.0,67368.0,0.445314]
[1729882113478,0.03406019,67369.0,67368.0,0.148438]
[1729882114810,0.03606019,67369.0,67366.0,0.148441]
[1729882115052,0.03406019,67369.0,67365.0,0.296888]
[1729882115258,0.22267582,67375.0,67374.0,0.01]
[1729882115710,0.00255446,67381.0,67374.0,0.01]
[1729882115938,0.00255446,67381.0,67379.0,0.002]
[1729882116613,0.00255446,67381.0,67372.0,0.005]
[1729882116614,0.52204528,67382.0,67373.0,0.002]
[1729882116852,0.00255446,67381.0,67375.0,0.005]
[1729882117061,0.15095746,67384.0,67375.0,0.005]
[1729882117496,0.148407,67383.0,67375.0,0.005]
[1729882117731,0.00255446,67382.0,67375.0,0.005]
[1729882118595,0.00255446,67382.0,67378.0,0.002]
[1729882119045,0.00255446,67384.0,67378.0,0.002]
[1729882119258,0.148412,67380.0,67378.0,0.002]
[1729882119476,0.00255446,67379.0,67378.0,0.002]
[1729882120153,0.148416,67378.0,67375.0,0.005]
[1729882120377,0.00255446,67377.0,67376.0,0.002]
[1729882120596,0.148418,67377.0,67376.0,0.002]
[1729882120807,0.148419,67377.0,67375.0,0.005]
[1729882121029,0.00255446,67376.0,67375.0,0.005]
[1729882121244,0.296816,67382.0,67369.0,0.002]
[1729882121245,0.00255446,67378.0,67369.0,0.002]
[1729882121520,0.00255446,67378.0,67366.0,0.007]
[1729882121521,0.296841,67376.0,67366.0,0.007]
[1729882121736,0.23151116,67372.0,67364.0,0.005]
[1729882121981,0.00255446,67371.0,67367.0,0.22267582]
[1729882122188,0.00255446,67370.0,67364.0,0.005]
[1729882123076,0.00255446,67370.0,67366.0,0.002]
[1729882123309,0.00255446,67372.0,67366.0,0.002]
[1729882124487,0.00255446,67372.0,67369.0,0.000823]
[1729882125417,0.148434,67370.0,67369.0,0.000823]
[1729882125631,0.30149227,67370.0,67369.0,0.000823]
[1729882126375,0.00255446,67370.0,67369.0,0.000823]
[1729882127029,0.15098846,67370.0,67369.0,0.000823]
[1729882127948,0.30149227,67370.0,67369.0,0.000823]
[1729882129264,0.51458029,67370.0,67369.0,0.000823]
[1729882129497,0.35953781,67370.0,67369.0,0.000823]
[1729882129711,0.40579843,67370.0,67369.0,0.000823]
[1729882130465,0.40579843,67370.0,67326.0,0.22267582]
[1729882130466,0.0226,67346.0,67326.0,0.22267582]
[1729882130711,0.015,67327.0,67326.0,0.22267582]
[1729882130922,0.015,67327.0,67317.0,0.00084]
[1729882130923,0.01,67318.0,67317.0,0.00084]
[1729882132852,0.005,67310.0,67309.0,0.00584]
[1729882134718,0.005,67310.0,67309.0,0.00084]
[1729882135151,0.24448873,67310.0,67309.0,0.00084]
[1729882136340,0.01,67310.0,67309.0,0.00584]
[1729882136558,0.23193427,67313.0,67309.0,0.00584]
[1729882136801,0.21461009,67317.0,67310.0,0.005]
[1729882137012,0.37120882,67325.0,67312.0,0.005]
[1729882137013,0.22267582,67315.0,67312.0,0.005]
[1729882137464,0.22267582,67315.0,67313.0,0.005]
[1729882138348,0.00222815,67321.0,67313.0,0.005]
[1729882138555,0.22267582,67318.0,67313.0,0.005]
[1729882138801,0.00222815,67321.0,67313.0,0.005]
[1729882139014,0.45461009,67318.0,67313.0,0.005]
[1729882139508,0.00255446,67317.0,67309.0,0.00584]
[1729882139751,0.23193427,67310.0,67309.0,0.00084]
[1729882141792,0.23193427,67310.0,67302.0,0.00584]
[1729882142018,0.00255446,67309.0,67302.0,0.00584]
[1729882142710,0.22523028,67309.0,67302.0,0.00584]
[1729882143213,0.23193427,67304.0,67302.0,0.00584]
[1729882143657,0.15113546,67303.0,67302.0,0.00084]
[1729882144598,0.00255446,67303.0,67302.0,0.00084]
[1729882149820,0.30163927,67303.0,67302.0,0.00084]
[1729882150302,0.01,67302.0,67300.0,0.00084]
[1729882150513,0.31164127,67302.0,67300.0,0.00084]
[1729882150732,0.350668,67302.0,67300.0,0.00084]
[1729882151166,0.29908681,67302.0,67300.0,0.00084]
[1729882151386,0.15305827,67302.0,67300.0,0.00084]
[1729882152513,0.30588649,67302.0,67300.0,0.00084]
[1729882153004,0.15282822,67306.0,67300.0,0.00084]
[1729882153232,0.15282822,67302.0,67300.0,0.00084]
[1729882154362,0.30396568,67302.0,67300.0,0.00084]
[1729882154573,0.30588649,67302.0,67300.0,0.00084]
[1729882155282,0.15538268,67302.0,67300.0,0.00084]
[1729882155500,0.52432009,67301.0,67300.0,0.00084]
[1729882155715,0.67459385,67301.0,67300.0,0.00084]
[1729882155936,0.15050381,67301.0,67300.0,0.00084]
[1729882156155,0.00255446,67301.0,67300.0,0.00084]
[1729882156372,0.15305827,67301.0,67300.0,0.00084]
[1729882156590,0.00255446,67301.0,67300.0,0.00084]
[1729882157483,0.15282822,67301.0,67300.0,0.00084]
[1729882158323,0.15282822,67301.0,67298.0,0.00084]
[1729882158798,0.00255446,67300.0,67298.0,0.00084]
[1729882159503,0.00255446,67308.0,67299.0,0.260223]
[1729882159739,0.15282822,67306.0,67299.0,0.260223]
[1729882159975,0.00255446,67305.0,67299.0,0.260223]
[1729882160415,0.00255446,67307.0,67302.0,0.005]
[1729882161294,0.15282822,67310.0,67302.0,0.005]
[1729882161511,0.22267582,67309.0,67303.0,0.148581]
[1729882161979,0.22267582,67309.0,67302.0,0.005]
[1729882162457,0.15282822,67310.0,67304.0,0.005]
[1729882162668,0.22267582,67309.0,67305.0,0.153576]
[1729882162881,0.15282822,67310.0,67308.0,0.148568]
[1729882163109,0.15282822,67310.0,67309.0,0.148568]
[1729882163327,0.15282822,67310.0,67307.0,0.148571]
[1729882163562,0.15282822,67310.0,67306.0,0.005]
[1729882163563,0.15282822,67310.0,67309.0,0.148568]
[1729882164675,0.001646,67317.0,67312.0,0.005]
[1729882164912,0.001646,67317.0,67316.0,0.153553]
[1729882165568,0.001646,67317.0,67316.0,0.232753]
[1729882165791,0.001646,67317.0,67316.0,0.432053]
[1729882166537,0.001646,67317.0,67316.0,0.58255681]
[1729882166748,0.001646,67317.0,67316.0,0.58755681]
[1729882166963,0.001646,67317.0,67316.0,0.59255681]
[1729882167401,0.22267582,67332.0,67316.0,0.59255681]
[1729882167402,0.22267582,67332.0,67331.0,0.419019]
[1729882167887,0.22267582,67339.0,67331.0,0.419019]
[1729882167888,0.22267582,67339.0,67331.0,0.42100381]
[1729882168107,0.22267582,67339.0,67338.0,0.153504]
[1729882168900,0.15282822,67354.0,67346.0,0.296969]
[1729882169115,0.15282822,67354.0,67352.0,0.148473]
[1729882169346,0.15282822,67354.0,67352.0,0.229873]
[1729882169572,0.15282822,67354.0,67352.0,0.148473]
[1729882169804,0.15282822,67354.0,67353.0,0.148471]
[1729882170680,0.15282822,67354.0,67352.0,0.148472]
[1729882170916,0.15282822,67354.0,67353.0,0.148471]
[1729882172243,0.15282822,67363.0,67352.0,0.005]
[1729882172465,0.22267582,67357.0,67356.0,0.153464]
[1729882172740,0.15282822,67359.0,67358.0,0.14846]
[1729882172952,0.15282822,67363.0,67362.0,0.14845]
[1729882173855,0.15282822,67363.0,67362.0,0.15345]
[1729882174521,0.00255446,67366.0,67362.0,0.005]
[1729882174750,0.00255446,67366.0,67359.0,0.005]
[1729882174751,0.15282822,67365.0,67359.0,0.005]
[1729882174962,0.00255446,67364.0,67359.0,0.153457]
[1729882175192,0.00255446,67364.0,67358.0,0.005]
[1729882175416,0.15282822,67361.0,67357.0,0.14846]
[1729882175646,0.15282822,67361.0,67359.0,0.005]
[1729882175872,0.22523028,67360.0,67356.0,0.148464]
[1729882176107,0.00255446,67360.0,67356.0,0.005]
[1729882176354,0.15282822,67357.0,67353.0,0.30194]
[1729882176595,0.00255446,67356.0,67351.0,0.005]
[1729882177015,0.15282822,67361.0,67355.0,0.148465]
[1729882177234,0.22267582,67359.0,67351.0,0.005]
[1729882177456,0.00255446,67358.0,67356.0,0.148463]
[1729882177713,0.15282822,67365.0,67356.0,0.148464]
[1729882177952,0.22267582,67360.0,67358.0,0.005]
[1729882178163,0.00255446,67364.0,67362.0,0.14845]
[1729882178390,0.00255446,67366.0,67363.0,0.148448]
[1729882178616,0.15282822,67365.0,67359.0,0.593832]
[1729882178835,0.00255446,67364.0,67360.0,0.148454]
[1729882180831,0.00255446,67364.0,67359.0,0.296916]
[1729882181055,0.00255446,67364.0,67358.0,0.005]
[1729882181056,0.00255446,67364.0,67363.0,0.148449]
[1729882181269,0.00255446,67364.0,67360.0,0.148454]
[1729882181484,0.00255446,67364.0,67361.0,0.148453]
[1729882181732,0.00255446,67364.0,67363.0,0.148449]
[1729882181978,0.000823,67369.0,67368.0,0.148438]
[1729882182643,0.000823,67369.0,67364.0,0.296891]
[1729882182644,0.000823,67369.0,67366.0,0.148441]
[1729882182868,0.00337746,67369.0,67364.0,0.296891]
[1729882183091,0.03,67366.0,67364.0,0.296891]
[1729882183304,0.03,67366.0,67364.0,0.148445]
[1729882183762,0.03,67366.0,67365.0,0.148445]
[1729882184000,0.03,67366.0,67364.0,0.148446]
[1729882184721,0.00255446,67365.0,67362.0,0.0861]
[1729882185502,0.22267582,67364.0,67353.0,0.0835]
[1729882185591,0.148448,67364.0,67353.0,0.0835]
[1729882185802,0.15282822,67357.0,67353.0,0.0835]
[1729882186035,0.15282822,67357.0,67352.0,0.005]
[1729882186036,0.00255446,67356.0,67352.0,0.005]
[1729882190129,0.15282822,67355.0,67352.0,0.153473]
[1729882190368,0.00255446,67354.0,67353.0,0.148471]
[1729882191692,0.15282822,67359.0,67349.0,0.59392]
[1729882191967,0.001646,67364.0,67349.0,0.59392]
[1729882191968,0.22687628,67364.0,67350.0,0.00296919]
[1729882192189,0.22687628,67364.0,67363.0,0.148449]
[1729882192406,0.22432182,67364.0,67363.0,0.148449]
[1729882192624,0.001646,67364.0,67363.0,0.148449]
[1729882193080,0.001646,67364.0,67363.0,0.345849]
[1729882199068,0.30293422,67364.0,67363.0,0.345849]
[1729882199283,0.30293422,67364.0,67363.0,0.148449]
[1729882201142,0.30293422,67364.0,67354.0,0.296937]
[1729882201356,0.30293422,67364.0,67345.0,0.1822]
[1729882201357,0.15282822,67355.0,67350.0,0.0795]
[1729882201605,0.15282822,67355.0,67354.0,0.148469]
[1729882201829,0.00255446,67363.0,67358.0,0.14846]
[1729882201830,0.15282822,67359.0,67358.0,0.14846]
[1729882202060,0.15282822,67359.0,67357.0,0.148461]
[1729882202294,0.15282822,67359.0,67354.0,0.296934]
[1729882202295,0.15538268,67359.0,67356.0,0.296929]
[1729882202517,0.150106,67364.0,67360.0,0.296911]
[1729882202726,0.150106,67364.0,67363.0,0.148449]
[1729882203193,0.150106,67364.0,67313.0,0.06452827]
[1729882203194,0.150106,67364.0,67357.0,0.296923]
[1729882203429,0.150106,67364.0,67360.0,0.148454]
[1729882203430,0.15282822,67362.0,67360.0,0.148454]
[1729882204546,0.15282822,67362.0,67361.0,0.148453]
[1729882205069,0.150106,67364.0,67362.0,0.14845]
[1729882205295,0.15266046,67364.0,67360.0,0.148455]
[1729882205510,0.15266046,67364.0,67363.0,0.148449]
[1729882205511,0.150106,67364.0,67363.0,0.148449]
[1729882207337,0.150106,67364.0,67360.0,0.344355]
[1729882207554,0.30128122,67361.0,67352.0,0.148471]
[1729882207784,0.15282822,67357.0,67352.0,0.148471]
[1729882208038,0.00255446,67356.0,67349.0,0.296958]
[1729882208258,0.00255446,67356.0,67353.0,0.149293]
[1729882208467,0.00255446,67356.0,67355.0,0.148467]
[1729882208705,0.15282822,67357.0,67354.0,0.148469]
[1729882208917,0.15282822,67357.0,67353.0,0.000823]
[1729882209130,0.00255446,67356.0,67355.0,0.296934]
[1729882209347,0.15282822,67357.0,67355.0,0.296934]
[1729882209563,0.15282822,67357.0,67356.0,0.148464]
[1729882213309,0.15538268,67361.0,67353.0,0.000823]
[1729882213529,0.15538268,67361.0,67359.0,0.148457]
[1729882214259,0.150106,67364.0,67360.0,0.296907]
[1729882214487,0.150106,67364.0,67363.0,0.148449]
[1729882217694,0.150106,67364.0,67355.0,0.373332]
[1729882217931,0.15282822,67356.0,67355.0,0.296933]
[1729882218138,0.15282822,67356.0,67355.0,0.4454]
[1729882218417,0.15282822,67356.0,67355.0,0.148467]
[1729882218620,0.15282822,67356.0,67353.0,0.000823]
[1729882218846,0.00255446,67355.0,67353.0,0.000823]
[1729882219081,0.00255446,67363.0,67362.0,0.148451]
[1729882219292,0.00255446,67363.0,67357.0,0.296924]
[1729882219293,0.22267582,67359.0,67357.0,0.296924]
[1729882219511,0.00255446,67358.0,67357.0,0.445386]
[1729882219713,0.00255446,67359.0,67357.0,0.296924]
[1729882219895,0.00255446,67359.0,67358.0,0.14846]
[1729882222760,0.00255446,67359.0,67353.0,0.000823]
[1729882223180,0.296934,67355.0,67353.0,0.000823]
[1729882223391,0.15102346,67354.0,67353.0,0.000823]
[1729882224278,0.00255446,67354.0,67353.0,0.000823]
[1729882224709,0.150106,67364.0,67354.0,0.148467]
[1729882224923,0.150106,67364.0,67353.0,0.227294]
[1729882224924,0.22267582,67357.0,67353.0,0.227294]
[1729882225141,0.15282822,67359.0,67353.0,0.227294]
[1729882225360,0.15282822,67359.0,67354.0,0.148468]
[1729882226043,0.15282822,67359.0,67353.0,0.227293]
[1729882226477,0.22523028,67358.0,67353.0,0.078823]
[1729882226724,0.15282822,67355.0,67353.0,0.078823]
[1729882226931,0.15102346,67354.0,67353.0,0.000823]
[1729882227616,0.4113102,67354.0,67353.0,0.000823]
[1729882227870,0.36568403,67354.0,67353.0,0.000823]
[1729882228087,0.3929211,67354.0,67353.0,0.000823]
[1729882228309,0.46146741,67354.0,67353.0,0.000823]
[1729882228568,0.35028205,67354.0,67353.0,0.000823]
[1729882228811,0.35028205,67354.0,67325.0,0.1813]
[1729882228812,0.15282822,67334.0,67325.0,0.1813]
[1729882229058,0.15282822,67334.0,67324.0,0.0753]
[1729882229059,0.148522,67330.0,67329.0,0.22267582]
[1729882229279,0.148527,67328.0,67324.0,0.0753]
[1729882229493,0.15282822,67325.0,67324.0,0.0753]
[1729882230926,0.15282822,67335.0,67324.0,0.0753]
[1729882231163,0.52468182,67339.0,67324.0,0.0753]
[1729882231164,0.15282822,67331.0,67324.0,0.0753]
[1729882231657,0.51968182,67339.0,67324.0,0.0753]
[1729882231658,0.0034601,67330.0,67325.0,0.00297048]
[1729882231888,0.0034601,67330.0,67329.0,0.148524]
[1729882234772,0.0034601,67330.0,67325.0,0.1737]
[1729882234998,0.148535,67324.0,67318.0,0.0777]
[1729882235244,0.297057,67327.0,67318.0,0.0777]
[1729882235245,0.15282822,67319.0,67318.0,0.0777]
[1729882235522,0.15282822,67320.0,67318.0,0.0777]
[1729882236461,0.22267582,67319.0,67317.0,0.000823]
[1729882236701,0.148548,67318.0,67317.0,0.000823]
[1729882237152,0.30393068,67318.0,67317.0,0.000823]
[1729882237370,0.45443449,67318.0,67317.0,0.000823]
[1729882237605,0.5137257,67318.0,67317.0,0.000823]
[1729882237822,0.5187257,67318.0,67317.0,0.000823]
[1729882238042,0.148583,67302.0,67299.0,0.000823]
[1729882238259,0.297126,67312.0,67299.0,0.000823]
[1729882238260,0.15282822,67301.0,67299.0,0.000823]
[1729882238945,0.15282822,67301.0,67300.0,0.149411]
[1729882239162,0.15282822,67301.0,67300.0,0.000823]
[1729882240492,0.00255446,67306.0,67300.0,0.000823]
[1729882240493,0.23208178,67303.0,67300.0,0.000823]
[1729882241376,0.23463624,67303.0,67300.0,0.000823]
[1729882241621,0.30434135,67315.0,67300.0,0.000823]
[1729882241622,0.00255446,67306.0,67300.0,0.000823]
[1729882241827,0.22267582,67301.0,67300.0,0.00379475]
[1729882242047,0.23208178,67307.0,67302.0,0.148582]
[1729882242269,0.23208178,67307.0,67303.0,0.14858]
[1729882243382,0.23208178,67307.0,67301.0,0.148585]
[1729882243801,0.23208178,67307.0,67303.0,0.000822]
[1729882244686,0.00255446,67306.0,67303.0,0.000822]
[1729882245175,0.148579,67304.0,67303.0,0.000822]
[1729882245402,0.148578,67305.0,67303.0,0.000822]
[1729882245621,0.00255446,67304.0,67303.0,0.000822]
[1729882246072,0.00255446,67306.0,67303.0,0.000822]
[1729882246296,0.148579,67304.0,67303.0,0.000822]
[1729882246769,0.00255446,67304.0,67303.0,0.000822]
[1729882247229,0.23208178,67307.0,67303.0,0.000822]
[1729882247454,0.37380528,67306.0,67303.0,0.000822]
[1729882247681,0.00255446,67305.0,67303.0,0.000822]
[1729882248616,0.148562,67312.0,67303.0,0.000822]
[1729882248835,0.22267582,67306.0,67303.0,0.149402]
[1729882249064,0.23208178,67308.0,67304.0,0.148579]
[1729882249308,0.23208178,67308.0,67303.0,0.000822]
[1729882250172,0.23463624,67308.0,67303.0,0.000822]
[1729882250393,0.23208178,67308.0,67303.0,0.000822]
[1729882250682,0.23463624,67308.0,67303.0,0.000822]
[1729882251123,0.23208178,67308.0,67303.0,0.000822]
[1729882251343,0.23463624,67308.0,67303.0,0.000822]
[1729882251559,0.23208178,67308.0,67303.0,0.000822]
[1729882251995,0.23463624,67308.0,67303.0,0.000822]
[1729882252215,0.23208178,67308.0,67303.0,0.149403]
[1729882252684,0.00255446,67310.0,67303.0,0.16469549]
[1729882252914,0.28226391,67348.0,67304.0,0.4141753]
[1729882252915,0.22267582,67312.0,67304.0,0.4141753]
[1729882253146,0.23208178,67309.0,67304.0,0.2607]
[1729882253827,0.23208178,67309.0,67304.0,0.409278]
[1729882254540,0.23208178,67309.0,67304.0,0.2607]
[1729882255212,0.148573,67307.0,67304.0,0.0797]
[1729882255431,0.00255446,67306.0,67304.0,0.0797]
[1729882255892,0.23208178,67309.0,67304.0,0.0797]
[1729882256122,0.23208178,67309.0,67304.0,0.228277]
[1729882256584,0.23208178,67314.0,67304.0,0.0797]
[1729882256810,0.22267582,67311.0,67305.0,0.297154]
[1729882257027,0.22267582,67311.0,67308.0,0.148569]
[1729882257253,0.22267582,67311.0,67305.0,0.297153]
[1729882257478,0.23208178,67314.0,67310.0,0.148564]
[1729882257695,0.001646,67317.0,67312.0,0.14856]
[1729882257919,0.22267582,67313.0,67310.0,0.148565]
[1729882258135,0.23208178,67314.0,67310.0,0.148565]
[1729882258401,0.23208178,67314.0,67308.0,0.445707]
[1729882258624,0.23463624,67314.0,67308.0,0.445707]
[1729882259055,0.23463624,67314.0,67309.0,0.148567]
[1729882259274,0.23463624,67314.0,67310.0,0.148565]
[1729882259495,0.23208178,67314.0,67310.0,0.148565]
[1729882260390,0.15277969,67311.0,67304.0,0.0797]
[1729882260615,0.15277969,67306.0,67305.0,0.148576]
[1729882261082,0.15277969,67306.0,67304.0,0.0797]
[1729882261304,0.15277969,67306.0,67304.0,0.228278]
[1729882261524,0.15277969,67306.0,67303.0,0.000822]
[1729882261525,0.148579,67304.0,67303.0,0.000822]
[1729882261754,0.15113346,67304.0,67303.0,0.000822]
[1729882261979,0.297155,67305.0,67303.0,0.000822]
[1729882261980,0.15277969,67306.0,67303.0,0.000822]
[1729882262489,0.37545551,67310.0,67303.0,0.181622]
[1729882262716,0.22267582,67310.0,67309.0,0.148568]
[1729882262929,0.22267582,67310.0,67308.0,0.297141]
[1729882262930,0.37545551,67310.0,67305.0,0.297154]
[1729882263377,0.15277969,67306.0,67305.0,0.148576]
[1729882264522,0.15277969,67306.0,67303.0,0.181622]
[1729882264740,0.00255446,67305.0,67303.0,0.000822]
[1729882265397,0.00255446,67305.0,67304.0,0.148579]
[1729882265613,0.15277969,67306.0,67303.0,0.000822]
[1729882265838,0.00255446,67305.0,67303.0,0.000822]
[1729882267562,0.22523028,67305.0,67303.0,0.000822]
[1729882267786,0.30391315,67304.0,67303.0,0.000822]
[1729882268480,0.15533415,67304.0,67303.0,0.000822]
[1729882268742,0.00255446,67304.0,67303.0,0.000822]
[1729882269614,0.04894869,67304.0,67303.0,0.000822]
[1729882269838,0.20172838,67304.0,67303.0,0.000822]
[1729882270268,0.04894869,67304.0,67303.0,0.000822]
[1729882270711,0.20172838,67304.0,67303.0,0.000822]
[1729882270951,0.5729832,67304.0,67303.0,0.000822]
[1729882271190,0.5729832,67304.0,67300.0,0.000823]
[1729882271191,0.30136569,67301.0,67300.0,0.000823]
[1729882271450,0.50081819,67301.0,67300.0,0.000823]
[1729882271691,0.50081819,67301.0,67298.0,0.00084]
[1729882271692,0.14859,67299.0,67298.0,0.00084]
[1729882271926,0.3480425,67299.0,67298.0,0.00084]
[1729882272161,0.34548804,67299.0,67298.0,0.00084]
[1729882274339,0.35048804,67299.0,67298.0,0.00084]
[1729882274929,0.57316386,67299.0,67298.0,0.00084]
[1729882275166,0.57316386,67299.0,67294.0,0.00084]
[1729882275167,0.148595,67297.0,67294.0,0.00084]
[1729882275371,0.30165327,67297.0,67294.0,0.00084]
[1729882275968,0.3480475,67297.0,67294.0,0.00084]
[1729882276181,0.34549304,67297.0,67294.0,0.00084]
[1729882276802,0.148599,67295.0,67294.0,0.00084]
[1729882277025,0.45443696,67295.0,67294.0,0.00084]
[1729882277225,0.4518825,67295.0,67294.0,0.00084]
[1729882277852,0.148614,67288.0,67287.0,0.0177393]
[1729882278064,0.30139369,67288.0,67287.0,0.0177393]
[1729882278289,0.60467719,67288.0,67287.0,0.0177393]
[1729882279611,0.4518975,67288.0,67287.0,0.0177393]
[1729882279828,0.49824471,67288.0,67287.0,0.0177393]
[1729882280261,0.4518975,67288.0,67287.0,0.0177393]
[1729882282598,0.15277969,67288.0,67287.0,0.0177393]
[1729882283022,0.15756367,67288.0,67287.0,0.0177393]
[1729882283255,0.30617767,67288.0,67287.0,0.0177393]
[1729882283685,0.148621,67285.0,67284.0,0.00084]
[1729882283903,0.30167927,67285.0,67284.0,0.00084]
[1729882284130,0.3479785,67285.0,67284.0,0.00084]
[1729882284344,0.52180063,67285.0,67284.0,0.00084]
[1729882284575,0.34540845,67285.0,67284.0,0.00084]
[1729882284791,0.34540845,67285.0,67269.0,0.148654]
[1729882284792,0.15277969,67276.0,67269.0,0.148654]
[1729882285002,0.15277969,67270.0,67264.0,0.148667]
[1729882285229,0.15277969,67265.0,67264.0,0.297331]
[1729882285480,0.15277969,67265.0,67264.0,0.445998]
[1729882286366,0.15277969,67265.0,67264.0,0.712598]
[1729882288663,0.22267582,67276.0,67264.0,0.71443481]
[1729882288895,0.22267582,67276.0,67275.0,0.148643]
[1729882289111,0.22267582,67285.0,67278.0,0.148636]
[1729882289112,0.00255446,67279.0,67278.0,0.148636]
[1729882289340,0.22267582,67292.0,67275.0,0.2509]
[1729882289341,0.00255446,67290.0,67275.0,0.2509]
[1729882289566,0.22267582,67292.0,67275.0,0.2509]
[1729882289567,0.00255446,67291.0,67283.0,0.29725]
[1729882289787,0.00255446,67291.0,67288.0,0.148614]
[1729882290006,0.00255446,67291.0,67290.0,0.14861]
[1729882290220,0.15277969,67291.0,67290.0,0.2532]
[1729882290430,0.15277969,67291.0,67290.0,0.40181]
[1729882293054,0.15277969,67291.0,67290.0,0.2532]
[1729882293720,0.15277969,67291.0,67290.0,0.40181]
[1729882297149,0.001646,67295.0,67294.0,0.148601]
[1729882297336,0.001646,67295.0,67294.0,0.30207638]
[1729882297572,0.001646,67295.0,67294.0,0.55867638]
[1729882297803,0.001646,67295.0,67294.0,0.55570481]
[1729882298036,0.22267582,67305.0,67299.0,0.005]
[1729882298269,0.22267582,67305.0,67304.0,0.148579]
[1729882298725,0.22267582,67313.0,67312.0,0.148561]
[1729882299207,0.15277969,67326.0,67316.0,0.225353]
[1729882299445,0.15277969,67326.0,67316.0,0.403453]
[1729882299680,0.15277969,67322.0,67316.0,0.403453]
[1729882301583,0.15277969,67318.0,67316.0,0.403453]
[1729882301812,0.00420046,67317.0,67314.0,0.148557]
[1729882302050,0.00420046,67317.0,67311.0,0.297128]
[1729882302302,0.001646,67317.0,67316.0,0.148553]
[1729882303514,0.00420046,67317.0,67315.0,0.148553]
[1729882303742,0.00420046,67317.0,67310.0,0.297129]
[1729882303743,0.15277969,67316.0,67310.0,0.297129]
[1729882303987,0.15277969,67316.0,67314.0,0.148556]
[1729882304215,0.15277969,67316.0,67315.0,0.148555]
[1729882305574,0.30133269,67316.0,67315.0,0.148555]
[1729882307387,0.148553,67316.0,67315.0,0.148555]
[1729882308817,0.148553,67316.0,67315.0,2e-06]
[1729882309046,0.30133269,67316.0,67315.0,0.148557]
[1729882309948,0.148553,67316.0,67315.0,0.148557]
[1729882311337,0.30133269,67316.0,67315.0,0.148557]
[1729882312035,0.30133269,67316.0,67315.0,2e-06]
[1729882312247,0.30388715,67316.0,67315.0,2e-06]
[1729882312892,0.15110746,67316.0,67315.0,2e-06]
[1729882313110,0.148553,67316.0,67315.0,0.148557]
[1729882313323,0.148553,67316.0,67311.0,0.297125]
[1729882313777,0.148553,67316.0,67312.0,0.148561]
[1729882314458,0.148553,67316.0,67315.0,0.148555]
[1729882314673,0.148553,67316.0,67315.0,0.398355]
[1729882315341,0.148553,67316.0,67315.0,0.54885881]
[1729882315575,0.150199,67316.0,67315.0,0.55385881]
[1729882316853,0.150199,67316.0,67315.0,0.55885881]
[1729882317073,0.150199,67316.0,67315.0,0.56385881]
[1729882319088,0.001646,67316.0,67315.0,0.55804588]
[1729882319537,0.001646,67316.0,67315.0,0.56304588]
[1729882320192,0.001646,67316.0,67315.0,0.54885881]
[1729882322010,0.001646,67316.0,67315.0,0.56385881]
[1729882322740,0.001646,67316.0,67315.0,0.7166385]
[1729882322981,0.001646,67317.0,67316.0,0.406053]
[1729882323209,0.0034601,67330.0,67329.0,0.37690369]
[1729882323457,0.0034601,67330.0,67329.0,0.6993075]
[1729882327743,0.0034601,67330.0,67329.0,0.7093075]
[1729882328223,0.0051061,67330.0,67329.0,0.7093075]
[1729882328698,0.0051061,67330.0,67329.0,0.86208719]
[1729882328922,0.22267582,67348.0,67347.0,0.30126369]
[1729882329143,0.22267582,67348.0,67347.0,0.148484]
[1729882329577,0.150133,67363.0,67351.0,0.148475]
[1729882329798,0.001682,67363.0,67351.0,0.148475]
[1729882330693,0.001682,67363.0,67347.0,0.296968]
[1729882330694,0.296905,67362.0,67350.0,0.00296923]
[1729882330950,0.15277969,67354.0,67341.0,0.005]
[1729882331202,0.296917,67359.0,67342.0,0.0762]
[1729882331203,0.15277969,67350.0,67342.0,0.0762]
[1729882331665,0.296943,67353.0,67342.0,0.0762]
[1729882331875,0.296931,67356.0,67343.0,0.148492]
[1729882331876,0.15267246,67352.0,67343.0,0.148492]
[1729882332319,0.15267246,67352.0,67344.0,0.148491]
[1729882332981,0.148476,67351.0,67342.0,0.224694]
[1729882333451,0.148476,67351.0,67343.0,0.148493]
[1729882334536,0.00419846,67352.0,67343.0,0.148493]
[1729882334537,0.37115382,67350.0,67343.0,0.148493]
[1729882334750,0.15533415,67349.0,67333.0,0.1721]
[1729882334967,0.15277969,67345.0,67334.0,0.0776]
[1729882335220,0.148503,67339.0,67334.0,0.0776]
[1729882335441,0.148505,67338.0,67334.0,0.0776]
[1729882335658,0.148504,67338.0,67334.0,0.0776]
[1729882335882,0.148499,67341.0,67335.0,0.14851]
[1729882336098,0.148494,67343.0,67337.0,0.148506]
[1729882336320,0.148496,67342.0,67337.0,0.148506]
[1729882336542,0.00255446,67342.0,67335.0,0.29702]
[1729882336756,0.00255446,67342.0,67328.0,0.23150381]
[1729882336757,0.296974,67346.0,67331.0,0.30000706]
[1729882336959,0.148488,67346.0,67341.0,0.148497]
[1729882337208,0.22267582,67343.0,67341.0,0.148497]
[1729882337429,0.148491,67344.0,67339.0,0.1485]
[1729882337651,0.148491,67344.0,67335.0,0.297019]
[1729882337893,0.148494,67343.0,67339.0,0.1485]
[1729882338390,0.148494,67343.0,67332.0,0.15050381]
[1729882338391,0.22523028,67342.0,67334.0,0.148512]
[1729882338605,0.148503,67339.0,67334.0,0.148512]
[1729882338811,0.296996,67341.0,67332.0,0.297033]
[1729882339239,0.37117682,67340.0,67335.0,0.148509]
[1729882339456,0.148502,67339.0,67335.0,0.148509]
[1729882340121,0.22267582,67340.0,67332.0,0.148517]
[1729882340347,0.22523028,67340.0,67330.0,0.000823]
[1729882340558,0.445515,67338.0,67333.0,0.148515]
[1729882340779,0.00255446,67337.0,67330.0,0.000823]
[1729882341047,0.297017,67336.0,67330.0,0.000823]
[1729882341266,0.148519,67331.0,67330.0,0.000823]
[1729882341487,0.15107346,67331.0,67330.0,0.000823]
[1729882343060,0.148516,67333.0,67330.0,0.000823]
[1729882343274,0.297025,67335.0,67330.0,0.149345]